fUSD/lending_fUSD_20241221
["ID","MTS","AMOUNT","RATE_DAILY","PERIOD"]
[346158453,1734759076385,-500.0,0.0002242,2]
[346158454,1734759076394,-500.0,0.0002242,2]
[346158455,1734759076403,-500.0,0.0002242,2]
[346158456,1734759076412,-500.0,0.0002242,2]
[346158457,1734759076421,-500.0,0.0002242,2]
[346158458,1734759076430,-521.91133643,0.0002242,2]
[346158459,1734759076439,-342.84240695,0.0002242,2]
[346158460,1734759076448,-767.99,0.0002242,2]
[346158461,1734759076458,-500.0,0.0002242,2]
[346158462,1734759076467,-500.0,0.0002242,2]
[346158463,1734759076477,-500.0,0.0002242,2]
[346158464,1734759076487,-500.0,0.0002242,2]
[346158465,1734759076496,-500.0,0.0002242,2]
[346158466,1734759076505,-500.0,0.0002242,2]
[346158467,1734759076514,-648.70728061,0.0002242,2]
[346158468,1734759076524,-500.0,0.0002242,2]
[346158469,1734759076533,-415.0110633,0.0002242,2]
[346158470,1734759076542,-500.0,0.0002242,2]
[346158471,1734759076552,-500.0,0.0002242,2]
[346158472,1734759076561,-500.0,0.0002242,2]
[346158473,1734759076570,-499.50690646,0.0002242,2]
[346158474,1734759076580,-500.0,0.0002242,2]
[346158475,1734759076590,-500.0,0.0002242,2]
[346158476,1734759076599,-500.0,0.0002242,2]
[346158477,1734759076609,-500.0,0.0002242,2]
[346158478,1734759076618,-500.0,0.0002242,2]
[346158479,1734759076627,-500.0,0.0002242,2]
[346158480,1734759076636,-500.0,0.0002242,2]
[346158481,1734759076646,-500.0,0.0002242,2]
[346158482,1734759076655,-500.0,0.0002242,2]
[346158483,1734759076664,-500.0,0.0002242,2]
[346158484,1734759076673,-500.0,0.0002242,2]
[346158485,1734759076683,-649.28,0.0002242,2]
[346158486,1734759076692,-636.29,0.0002242,2]
[346158487,1734759076701,-500.0,0.0002242,2]
[346158488,1734759076711,-742.92,0.0002242,2]
[346158489,1734759076720,-248.41275228,0.0002242,2]
[346158490,1734759076729,-500.0,0.0002242,2]
[346158491,1734759076739,-500.0,0.0002242,2]
[346158492,1734759076749,-500.0,0.0002242,2]
[346158493,1734759076758,-500.0,0.0002242,2]
[346158494,1734759076768,-510.22042067,0.0002242,2]
[346158495,1734759076780,-500.0,0.0002242,2]
[346158496,1734759076790,-500.0,0.0002242,2]
[346158497,1734759076801,-500.0,0.0002242,2]
[346158498,1734759076810,-500.0,0.0002242,2]
[346158499,1734759076823,-500.0,0.0002242,2]
[346158500,1734759076833,-500.0,0.0002242,2]
[346158501,1734759076844,-500.0,0.0002242,2]
[346158502,1734759076854,-507.5168132,0.0002242,2]
[346158503,1734759076926,-500.0,0.0002242,2]
[346158504,1734759076936,-566.85,0.0002242,2]
[346158505,1734759076944,-500.0,0.0002242,2]
[346158506,1734759076953,-500.0,0.0002242,2]
[346158507,1734759076962,-500.0,0.0002242,2]
[346158508,1734759076971,-500.0,0.0002242,2]
[346158509,1734759076980,-500.0,0.0002242,2]
[346158510,1734759076989,-500.0,0.0002242,2]
[346158511,1734759076998,-912.11,0.0002242,2]
[346158512,1734759077007,-500.0,0.0002242,2]
[346158513,1734759077016,-500.0,0.0002242,2]
[346158514,1734759077025,-500.0,0.0002242,2]
[346158515,1734759077034,-500.0,0.0002242,2]
[346158516,1734759077043,-500.0,0.0002242,2]
[346158517,1734759077052,-500.0,0.0002242,2]
[346158518,1734759077061,-500.0,0.0002242,2]
[346158519,1734759077070,-500.0,0.0002242,2]
[346158520,1734759077080,-500.0,0.0002242,2]
[346158521,1734759077089,-500.0,0.0002242,2]
[346158522,1734759077098,-900.88,0.0002242,2]
[346158523,1734759077107,-500.0,0.0002242,2]
[346158524,1734759077116,-500.0,0.0002242,2]
[346158525,1734759077125,-500.0,0.0002242,2]
[346158526,1734759077134,-308.31187274,0.0002242,2]
[346158527,1734759077144,-500.0,0.0002242,2]
[346158528,1734759077153,-500.0,0.0002242,2]
[346158529,1734759077162,-500.0,0.0002242,2]
[346158530,1734759077171,-500.0,0.0002242,2]
[346158531,1734759077180,-500.0,0.0002242,2]
[346158532,1734759077189,-500.0,0.0002242,2]
[346158533,1734759077199,-500.0,0.0002242,2]
[346158534,1734759077208,-238.19961183,0.0002242,2]
[346158535,1734759077217,-500.0,0.0002242,2]
[346158536,1734759077227,-500.0,0.0002242,2]
[346158537,1734759077236,-500.0,0.0002242,2]
[346158538,1734759077245,-500.0,0.0002242,2]
[346158539,1734759077254,-500.0,0.0002242,2]
[346158540,1734759077263,-500.0,0.0002242,2]
[346158541,1734759077273,-789.06,0.0002242,2]
[346158542,1734759077282,-525.1909994,0.0002242,2]
[346158543,1734759077292,-500.0,0.0002242,2]
[346158544,1734759077301,-629.28,0.0002242,2]
[346158545,1734759077311,-500.0,0.0002242,2]
[346158546,1734759077319,-500.0,0.0002242,2]
[346158547,1734759077331,-500.0,0.0002242,2]
[346158548,1734759077341,-693.72,0.0002242,2]
[346158549,1734759077352,-500.0,0.0002242,2]
[346158550,1734759077361,-500.0,0.0002242,2]
[346158551,1734759077370,-500.0,0.0002242,2]
[346158552,1734759077379,-500.0,0.0002242,2]
[346158553,1734759077388,-500.0,0.0002242,2]
[346158554,1734759077397,-500.0,0.0002242,2]
[346158555,1734759077406,-500.0,0.0002242,2]
[346158556,1734759077415,-500.0,0.0002242,2]
[346158557,1734759077425,-508.32923625,0.0002242,2]
[346158558,1734759077434,-500.0,0.0002242,2]
[346158559,1734759077443,-500.0,0.0002242,2]
[346158560,1734759077451,-500.0,0.0002242,2]
[346158561,1734759077461,-500.0,0.0002242,2]
[346158562,1734759077470,-500.0,0.0002242,2]
[346158563,1734759077479,-569.36537917,0.0002242,2]
[346158564,1734759077488,-500.0,0.0002242,2]
[346158565,1734759077497,-500.0,0.0002242,2]
[346158566,1734759077505,-504.16037029,0.0002242,2]
[346158567,1734759077514,-500.0,0.0002242,2]
[346158568,1734759077523,-500.0,0.0002242,2]
[346158569,1734759077532,-500.0,0.0002242,2]
[346158570,1734759077542,-500.0,0.0002242,2]
[346158571,1734759077551,-707.78,0.0002242,2]
[346158572,1734759077560,-500.0,0.0002242,2]
[346158573,1734759077569,-500.0,0.0002242,2]
[346158574,1734759077579,-500.0,0.0002242,2]
[346158575,1734759077588,-508.51495925,0.0002242,2]
[346158576,1734759077598,-500.0,0.0002242,2]
[346158577,1734759077607,-503.98181791,0.0002242,2]
[346158578,1734759077616,-500.0,0.0002242,2]
[346158579,1734759077625,-500.0,0.0002242,2]
[346158580,1734759077635,-500.0,0.0002242,2]
[346158581,1734759077644,-362.88688033,0.0002242,2]
[346158582,1734759077654,-546.15127941,0.0002242,2]
[346158583,1734759077663,-500.0,0.0002242,2]
[346158584,1734759077672,-511.60515505,0.0002242,2]
[346158585,1734759077681,-875.68,0.0002242,2]
[346158586,1734759077690,-500.0,0.0002242,2]
[346158587,1734759077699,-500.0,0.0002242,2]
[346158588,1734759077708,-500.0,0.0002242,2]
[346158589,1734759077717,-500.0,0.0002242,2]
[346158590,1734759077727,-456.4357573,0.0002242,2]
[346158591,1734759077736,-500.0,0.0002242,2]
[346158592,1734759077745,-500.0,0.0002242,2]
[346158593,1734759077755,-500.0,0.0002242,2]
[346158594,1734759077765,-500.0,0.0002242,2]
[346158595,1734759077775,-502.54995286,0.0002242,2]
[346158596,1734759077784,-755.46,0.0002242,2]
[346158597,1734759077794,-500.0,0.0002242,2]
[346158598,1734759077802,-500.0,0.0002242,2]
[346158599,1734759077811,-500.0,0.0002242,2]
[346158600,1734759077821,-500.0,0.0002242,2]
[346158601,1734759077831,-500.0,0.0002242,2]
[346158602,1734759077839,-500.0,0.0002242,2]
[346158603,1734759077849,-500.0,0.0002242,2]
[346158604,1734759077858,-500.0,0.0002242,2]
[346158605,1734759077867,-500.0,0.0002242,2]
[346158606,1734759077876,-500.0,0.0002242,2]
[346158607,1734759077885,-500.0,0.0002242,2]
[346158608,1734759077894,-636.90035193,0.0002242,2]
[346158609,1734759077903,-500.0,0.0002242,2]
[346158610,1734759077912,-396.26987389,0.0002242,2]
[346158611,1734759077922,-628.81,0.0002242,2]
[346158612,1734759077931,-500.0,0.0002242,2]
[346158613,1734759077940,-500.0,0.0002242,2]
[346158614,1734759077950,-600.03,0.0002242,2]
[346158615,1734759077959,-500.0,0.0002242,2]
[346158616,1734759077968,-505.05642559,0.0002242,2]
[346158617,1734759077977,-3032.04,0.0002242,2]
[346158618,1734759077986,-500.0,0.0002242,2]
[346158619,1734759077996,-500.0,0.0002242,2]
[346158620,1734759078005,-500.0,0.0002242,2]
[346158621,1734759078015,-500.0,0.0002242,2]
[346158622,1734759078024,-500.0,0.0002242,2]
[346158623,1734759078034,-500.0,0.0002242,2]
[346158624,1734759078043,-500.0,0.0002242,2]
[346158625,1734759078053,-500.0,0.0002242,2]
[346158626,1734759078062,-500.0,0.0002242,2]
[346158627,1734759078071,-500.0,0.0002242,2]
[346158628,1734759078081,-504.58616687,0.0002242,2]
[346158629,1734759078090,-500.0,0.0002242,2]
[346158630,1734759078100,-500.0,0.0002242,2]
[346158631,1734759078109,-500.0,0.0002242,2]
[346158632,1734759078118,-500.0,0.0002242,2]
[346158633,1734759078127,-5569.07,0.0002242,2]
[346158634,1734759078136,-500.0,0.0002242,2]
[346158635,1734759078145,-500.0,0.0002242,2]
[346158636,1734759078154,-500.0,0.0002242,2]
[346158637,1734759078164,-580.05,0.0002242,2]
[346158638,1734759078173,-500.0,0.0002242,2]
[346158639,1734759078182,-644.61,0.0002242,2]
[346158640,1734759078192,-500.0,0.0002242,2]
[346158641,1734759078201,-500.0,0.0002242,2]
[346158642,1734759078210,-567.86,0.0002242,2]
[346158643,1734759078220,-500.0,0.0002242,2]
[346158644,1734759078229,-3664.83,0.0002242,2]
[346158645,1734759078238,-500.0,0.0002242,2]
[346158646,1734759078248,-500.0,0.0002242,2]
[346158647,1734759078257,-500.0,0.0002242,2]
[346158648,1734759078266,-500.0,0.0002242,2]
[346158649,1734759078275,-500.0,0.0002242,2]
[346158650,1734759078284,-500.0,0.0002242,2]
[346158651,1734759078296,-500.0,0.0002242,2]
[346158652,1734759078305,-779.07,0.0002242,2]
[346158653,1734759078314,-500.0,0.0002242,2]
[346158654,1734759078323,-500.0,0.0002242,2]
[346158655,1734759078333,-506.30426781,0.0002242,2]
[346158656,1734759078342,-500.0,0.0002242,2]
[346158657,1734759078351,-500.0,0.0002242,2]
[346158658,1734759078360,-500.0,0.0002242,2]
[346158659,1734759078370,-500.0,0.0002242,2]
[346158660,1734759078379,-514.84,0.0002242,2]
[346158661,1734759078388,-500.0,0.0002242,2]
[346158662,1734759078397,-500.0,0.0002242,2]
[346158663,1734759078406,-500.0,0.0002242,2]
[346158664,1734759078415,-500.0,0.0002242,2]
[346158665,1734759078425,-500.0,0.0002242,2]
[346158666,1734759078434,-500.0,0.0002242,2]
[346158667,1734759078443,-500.0,0.0002242,2]
[346158668,1734759078452,-500.0,0.0002242,2]
[346158669,1734759078461,-500.0,0.0002242,2]
[346158670,1734759078470,-500.0,0.0002242,2]
[346158671,1734759078479,-500.0,0.0002242,2]
[346158672,1734759078488,-500.0,0.0002242,2]
[346158673,1734759078497,-500.0,0.0002242,2]
[346158674,1734759078506,-1022.05,0.0002242,2]
[346158675,1734759078515,-500.0,0.0002242,2]
[346158676,1734759078525,-500.0,0.0002242,2]
[346158677,1734759078534,-500.0,0.0002242,2]
[346158678,1734759078543,-500.0,0.0002242,2]
[346158679,1734759078553,-500.0,0.0002242,2]
[346158680,1734759078562,-550.64,0.0002242,2]
[346158681,1734759078572,-500.0,0.0002242,2]
[346158682,1734759078581,-500.0,0.0002242,2]
[346158683,1734759078591,-500.0,0.0002242,2]
[346158684,1734759078600,-500.0,0.0002242,2]
[346158685,1734759078610,-500.0,0.0002242,2]
[346158686,1734759078620,-500.0,0.0002242,2]
[346158687,1734759078629,-500.0,0.0002242,2]
[346158688,1734759078639,-500.0,0.0002242,2]
[346158689,1734759078648,-500.0,0.0002242,2]
[346158690,1734759078658,-500.0,0.0002242,2]
[346158691,1734759078668,-500.0,0.0002242,2]
[346158692,1734759078677,-500.0,0.0002242,2]
[346158693,1734759078687,-500.0,0.0002242,2]
[346158694,1734759078696,-500.0,0.0002242,2]
[346158695,1734759078705,-500.0,0.0002242,2]
[346158696,1734759078713,-500.0,0.0002242,2]
[346158697,1734759078722,-500.0,0.0002242,2]
[346158698,1734759078731,-500.0,0.0002242,2]
[346158699,1734759078740,-500.0,0.0002242,2]
[346158700,1734759078750,-500.0,0.0002242,2]
[346158701,1734759078759,-500.0,0.0002242,2]
[346158702,1734759078769,-500.0,0.0002242,2]
[346158703,1734759078782,-500.0,0.0002242,2]
[346158704,1734759078791,-500.0,0.00022421,2]
[346158705,1734759078801,-150.0,0.00022428,2]
[346158706,1734759078811,-150.0,0.00022428,2]
[346158707,1734759078822,-150.0,0.00022429,2]
[346158708,1734759078832,-150.0,0.0002243,2]
[346158709,1734759078843,-231.06566,0.00022431,2]
[346158710,1734759078853,-150.0,0.00022431,2]
[346158711,1734759078862,-150.0,0.00022434,2]
[346158712,1734759078872,-150.0,0.00022439,2]
[346158713,1734759078882,-150.0,0.0002244,2]
[346158714,1734759078891,-150.0,0.00022441,2]
[346158715,1734759078902,-150.0,0.00022442,2]
[346158716,1734759078911,-500.0,0.00022447,2]
[346158717,1734759078920,-500.0,0.00022447,2]
[346158718,1734759078929,-500.0,0.00022447,2]
[346158719,1734759078939,-500.0,0.00022447,2]
[346158720,1734759078948,-500.0,0.00022447,2]
[346158721,1734759078957,-697.84,0.00022447,2]
[346158722,1734759078967,-500.0,0.00022447,2]
[346158723,1734759078976,-500.0,0.00022447,2]
[346158724,1734759078986,-1002.39,0.00022447,2]
[346158725,1734759078995,-712.76,0.00022447,2]
[346158726,1734759079005,-500.0,0.00022447,2]
[346158727,1734759079014,-840.12,0.00022447,2]
[346158728,1734759079024,-970.43,0.00022447,2]
[346158729,1734759079033,-1519.74,0.00022447,2]
[346158730,1734759079042,-500.0,0.00022447,2]
[346158731,1734759079052,-615.74,0.00022447,2]
[346158732,1734759079061,-500.0,0.00022447,2]
[346158733,1734759079070,-556.24,0.00022447,2]
[346158734,1734759079080,-500.0,0.00022447,2]
[346158735,1734759079090,-1016.17,0.00022447,2]
[346158736,1734759079099,-500.0,0.00022447,2]
[346158737,1734759079108,-500.0,0.00022447,2]
[346158738,1734759079118,-575.14,0.00022447,2]
[346158739,1734759079127,-500.0,0.00022447,2]
[346158740,1734759079137,-500.0,0.00022447,2]
[346158741,1734759079146,-150.0,0.00022447,2]
[346158742,1734759079156,-150.0,0.00022452,2]
[346158743,1734759079166,-150.0,0.00022455,2]
[346158744,1734759079175,-150.0,0.00022462,2]
[346158745,1734759079184,-150.0,0.00022465,2]
[346158746,1734759079194,-392.0,0.00022466,2]
[346158747,1734759079203,-150.0,0.00022471,2]
[346158748,1734759079213,-150.0,0.00022472,2]
[346158749,1734759079222,-500.0,0.00022473,2]
[346158750,1734759079231,-500.0,0.00022473,2]
[346158751,1734759079241,-500.0,0.00022473,2]
[346158752,1734759079251,-500.0,0.00022473,2]
[346158753,1734759079260,-500.0,0.00022473,2]
[346158754,1734759079270,-993.08,0.00022473,2]
[346158755,1734759079279,-150.0,0.00022476,2]
[346158756,1734759079289,-5025.326596,0.00022485,2]
[346158757,1734759079298,-538.36945,0.00022488,7]
[346158758,1734759079308,-150.0,0.00022492,2]
[346158759,1734759079318,-150.0,0.00022493,4]
[346158760,1734759079329,-150.0,0.00022493,4]
[346158761,1734759079340,-150.0,0.00022493,4]
[346158762,1734759079351,-150.0,0.00022494,2]
[346158763,1734759079360,-10101.9447625,0.00022495,2]
[346158764,1734759079370,-666.0,0.00022499,2]
[346158765,1734759079380,-500.0,0.00022499,2]
[346158766,1734759079390,-500.0,0.00022499,2]
[346158767,1734759079399,-500.0,0.00022499,2]
[346158768,1734759079409,-500.0,0.00022499,2]
[346158769,1734759079419,-500.0,0.00022499,2]
[346158770,1734759079428,-1123.4,0.00022499,2]
[346158771,1734759079438,-1123.4,0.00022499,2]
[346158772,1734759079448,-1123.4,0.00022499,2]
[346158773,1734759079457,-1123.4,0.00022499,2]
[346158774,1734759079467,-1123.4,0.00022499,2]
[346158775,1734759079476,-1495.78,0.00022499,2]
[346158776,1734759079486,-1495.78,0.00022499,2]
[346158777,1734759079495,-1495.78,0.00022499,2]
[346158778,1734759079505,-1495.78,0.00022499,2]
[346158779,1734759079514,-1495.78,0.00022499,2]
[346158780,1734759079524,-2488.69088878,0.000225,2]
[346158781,1734759079534,-1126402.10487066,0.000225,2]
[346158782,1734759079544,-37415.85506585,0.000225,2]
[346158783,1734759079554,-2900.0,0.000225,15]
[346158784,1734759079563,-33913.35469236,0.000225,2]
[346158785,1734759079573,-13313.67989402,0.000225,30]
[346158786,1734759079582,-11025.79,0.000225,2]
[346158787,1734759079592,-5000.0,0.000225,2]
[346158788,1734759079602,-5000.0,0.000225,2]
[346158789,1734759079611,-2000.0,0.000225,2]
[346158790,1734759079620,-167.182842,0.000225,7]
[346158791,1734759079629,-167.182842,0.000225,7]
[346158792,1734759079639,-151.0,0.000225,7]
[346158793,1734759079648,-151.663805,0.000225,7]
[346158794,1734759079658,-151.0,0.000225,7]
[346158795,1734759079667,-151.305028,0.000225,7]
[346158796,1734759079676,-151.0,0.000225,7]
[346158797,1734759079686,-151.0,0.000225,7]
[346158798,1734759079695,-151.0,0.000225,7]
[346158799,1734759079704,-151.0,0.000225,7]
[346158800,1734759079714,-151.0,0.000225,7]
[346158801,1734759079723,-151.0,0.000225,7]
[346158802,1734759079733,-151.747205,0.000225,7]
[346158803,1734759079742,-151.0,0.000225,7]
[346158804,1734759079751,-151.351655,0.000225,7]
[346158805,1734759079760,-152.194252,0.000225,7]
[346158806,1734759079770,-151.279847,0.000225,7]
[346158807,1734759079783,-151.0,0.000225,7]
[346158808,1734759079793,-151.0,0.000225,7]
[346158809,1734759079802,-151.0,0.000225,7]
[346158810,1734759079811,-151.0,0.000225,7]
[346158811,1734759079822,-229.42635,0.000225,7]
[346158812,1734759079832,-157.509719,0.000225,7]
[346158813,1734759079842,-151.382943,0.000225,7]
[346158814,1734759079852,-151.0,0.000225,7]
[346158815,1734759079862,-151.0,0.000225,7]
[346158816,1734759079871,-154.494808,0.000225,7]
[346158817,1734759079881,-151.0,0.000225,7]
[346158818,1734759079890,-151.0,0.000225,7]
[346158819,1734759079900,-657.968342,0.000225,7]
[346158820,1734759079909,-151.0,0.000225,7]
[346158821,1734759079919,-657.968342,0.000225,7]
[346158822,1734759079928,-151.0,0.000225,7]
[346158823,1734759079937,-151.0,0.000225,7]
[346158824,1734759079947,-151.0,0.000225,7]
[346158825,1734759079956,-1434.446381,0.000225,7]
[346158826,1734759079965,-159.459192,0.000225,7]
[346158827,1734759079975,-1434.446381,0.000225,7]
[346158828,1734759079985,-159.459192,0.000225,7]
[346158829,1734759079994,-2035.290705,0.000225,7]
[346158830,1734759080003,-2035.290705,0.000225,7]
[346158831,1734759080012,-2070.641896,0.000225,7]
[346158832,1734759080022,-2070.641896,0.000225,7]
[346158833,1734759080031,-1344.626509,0.000225,7]
[346158834,1734759080040,-248.130383,0.000225,7]
[346158835,1734759080050,-248.130383,0.000225,7]
[346158836,1734759080059,-151.0,0.000225,7]
[346158837,1734759080068,-151.0,0.000225,7]
[346158838,1734759080078,-220.680413,0.000225,7]
[346158839,1734759080087,-500.0,0.000225,2]
[346158840,1734759080096,-151.0,0.000225,7]
[346158841,1734759080105,-151.0,0.000225,7]
[346158842,1734759080115,-687.866821,0.000225,7]
[346158843,1734759080124,-687.866821,0.000225,7]
[346158844,1734759080133,-151.0,0.000225,7]
[346158845,1734759080142,-151.0,0.000225,7]
[346158846,1734759080151,-321.859181,0.000225,7]
[346158847,1734759080161,-321.859181,0.000225,7]
[346158848,1734759080171,-151.0,0.000225,7]
[346158849,1734759080181,-901.437412,0.000225,7]
[346158850,1734759080191,-901.437412,0.000225,7]
[346158851,1734759080200,-158.0,0.000225,7]
[346158852,1734759080210,-151.0,0.000225,7]
[346158853,1734759080219,-403271.101146,0.000225,2]
[346158854,1734759080904,-97784.88832397,0.000225,2]
[346158855,1734759080915,-333.37312191,0.000225,2]
[346158856,1734759080934,-4458.27535006,0.000225,2]
[346158857,1734759080975,-29443.98336771,0.000225,2]
[346158858,1734759080986,-14910.10759383,0.000225,2]
[346158859,1734759080997,-4304.91232997,0.000225,2]
[346158860,1734759081012,-1000.0,0.000223,2]
[346158861,1734759081021,-12626.47147605,0.000225,2]
[346158862,1734759081032,-39691.51144084,0.000225,2]
[346158863,1734759081043,-8296.4823093,0.000225,2]
[346158864,1734759081054,-24439.19141542,0.000225,2]
[346158865,1734759081069,-1019.75198005,0.000225,2]
[346158866,1734759081080,-684.3000014,0.000225,2]
[346158867,1734759081091,-297491.70793125,0.000225,2]
[346158868,1734759081673,-641.10807111,0.00021399,2]
[346158869,1734759081682,-81.0872282,0.000225,2]
[346158870,1734759081693,-3814.89835701,0.000225,2]
[346158871,1734759081704,-1383.89329523,0.000225,2]
[346158872,1734759081741,-500.0,0.00021521,2]
[346158873,1734759081751,-1287.55805162,0.000225,2]
[346158874,1734759081762,-802.66496489,0.000225,2]
[346158875,1734759081774,-632.27300002,0.000225,2]
[346158876,1734759081788,-425.1582348,0.000225,2]
[346158877,1734759081799,-1186.35066904,0.000225,2]
[346158878,1734759081811,-1759.92358803,0.000225,2]
[346158879,1734759081823,-5492.02003773,0.000225,2]
[346158880,1734759081861,-1209.78002948,0.00022475,2]
[346158881,1734759081875,-290.21997052,0.00022475,2]
[346158882,1734759081883,-278.31684698,0.000225,2]
[346158883,1734759082468,-500.0,0.00021795,2]
[346158884,1734759082477,-500.0,0.00022069,2]
[346158885,1734759082486,-500.0,0.00022343,2]
[346158886,1734759082495,-235.02590669,0.000225,2]
[346158887,1734759082522,-581.29725562,0.000225,2]
[346158888,1734759082533,-2695.74136285,0.000225,2]
[346158889,1734759082575,-657.1156787,0.000225,2]
[346158890,1734759082587,-5242.74940921,0.000225,2]
[346158891,1734759082598,-7336.18371553,0.000225,2]
[346158892,1734759082608,-6855.90067227,0.000225,2]
[346158893,1734759082623,-21533.27470492,0.000225,2]
[346158894,1734759082634,-10377.31968114,0.000225,2]
[346158895,1734759082646,-1132.58449139,0.000225,2]
[346158896,1734759082656,-1580.61261136,0.000225,2]
[346158897,1734759082667,-930.16104195,0.000225,2]
[346158898,1734759082731,-6971.48568337,0.000225,2]
[346158899,1734759082742,-1469.6840553,0.000225,2]
[346158900,1734759082753,-739.20288052,0.000225,2]
[346158901,1734759083852,-641.10807107,0.00021471,2]
[346158902,1734759083862,-600.0,0.000216,5]
[346158903,1734759083871,-13754.0,0.00021771,2]
[346158904,1734759083881,-634.665,0.00021771,2]
[346158905,1734759083890,-23886.95082294,0.000225,2]
[346158906,1734759083901,-1865.90015416,0.000225,2]
[346158907,1734759083913,-4904.09797742,0.000225,2]
[346158908,1734759083924,-1303.17693193,0.000225,2]
[346158909,1734759083936,-3370.80736242,0.000225,2]
[346158910,1734759083948,-277.71141632,0.000225,2]
[346158911,1734759083960,-602.0,0.000225,2]
[346158912,1734759083974,-327.30281616,0.000225,2]
[346158913,1734759083986,-476576.26543964,0.000225,2]
[346158914,1734759084018,-2049.27708235,0.000225,2]
[346158915,1734759084031,-499.42384336,0.000225,2]
[346158916,1734759084110,-463.49596685,0.000225,2]
[346158917,1734759084122,-324.95834368,0.000225,2]
[346158918,1734759084132,-500.0,0.000225,2]
[346158919,1734759084143,-8987.6809423,0.000225,2]
[346158920,1734759084154,-62228.52587046,0.000225,2]
[346158921,1734759084166,-2238.27476078,0.000225,2]
[346158922,1734759084202,-770.20558297,0.000225,2]
[346158923,1734759084215,-1449.07818022,0.000225,2]
[346158924,1734759084228,-140588.8016482,0.000225,2]
[346158925,1734759084250,-7231.32003197,0.000225,2]
[346158937,1734759577283,157.74,0.00010137,2]
[346158938,1734759583704,-157.74,0.00017184,2]
[346158939,1734759583727,-889.06,0.00019023,2]
[346158940,1734759583749,-425.70497632,0.00019418,2]
[346158941,1734759583772,-527.49502368,0.00019518,2]
[346158996,1734760232006,-159.94,0.00015838,2]
[346158997,1734760232016,-915.79,0.00017825,2]
[346158998,1734760232027,-26114.27,0.00019248,2]
[346158999,1734760232037,-172.50497632,0.00019518,2]
[346159000,1734760232048,-178.20566159,0.00019548,2]
[346159001,1734760232059,-360.34,0.00019554,2]
[346159002,1734760232070,-1150.31,0.00019627,2]
[346159003,1734760232367,-1852.42,0.00019648,2]
[346159004,1734760232377,-697.13,0.00019651,2]
[346159005,1734760232388,-200.0,0.00019651,2]
[346159006,1734760232398,-1500.0,0.00019665,2]
[346159007,1734760232408,-23900.0,0.00019689,2]
[346159008,1734760232418,-250.0,0.00019821,2]
[346159009,1734760232429,-178.20566159,0.00019839,2]
[346159010,1734760232439,-1000.0,0.00019853,2]
[346159011,1734760232449,-250.0,0.00019906,2]
[346159012,1734760232459,-150.0,0.00019973,2]
[346159013,1734760232469,-184.63,0.0001999,2]
[346159014,1734760232478,-11508.63,0.0002001,2]
[346159015,1734760232489,-731.92,0.00020012,2]
[346159016,1734760232498,-250.0,0.00020027,2]
[346159017,1734760232508,-166.24,0.00020059,2]